bitfinex-derivatives/quotes_ETHF0:USTF0_20230104
["timestamp","ask_amount","ask_price","bid_price","bid_amount"]
[1672839985580,4.18662767,1253.8,1253.7,1.58563114]
[1672839989264,8.95135724,1253.8,1253.7,1.58563114]
[1672839989686,11.45135724,1253.8,1253.7,1.58563114]
[1672839989897,8.95135724,1253.8,1253.7,1.58563114]
[1672839990936,11.45135724,1253.8,1253.7,1.58563114]
[1672839991472,8.95135724,1253.8,1253.7,1.58563114]
[1672839991893,11.45135724,1253.8,1253.7,1.58563114]
[1672839992526,7.26472957,1253.8,1253.7,1.58563114]
[1672839992938,4.76472957,1253.8,1253.7,1.58563114]
[1672839993366,8.95230697,1253.8,1253.7,1.58563114]
[1672839996940,4.1875774,1253.8,1253.7,1.58563114]
[1672839997985,7.77660691,1253.8,1253.7,1.58563114]
[1672840001571,7.77660691,1253.8,1253.7,4.59293114]
[1672840002095,7.77660691,1253.8,1253.7,1.58563114]
[1672840002408,7.77660691,1253.8,1253.7,4.59293114]
[1672840003354,7.77660691,1253.8,1253.7,1.58563114]
[1672840003777,7.77660691,1253.8,1253.7,1.587]
[1672840004507,4.1875774,1253.8,1253.7,1.587]
[1672840010191,6.6875774,1253.8,1253.7,1.587]
[1672840011031,4.1875774,1253.8,1253.7,1.587]
[1672840011242,4.1875774,1253.8,1253.7,1.58246358]
[1672840013759,4.1875774,1253.8,1253.7,1.599]
[1672840022284,6.6875774,1253.8,1253.7,1.599]
[1672840022595,5.5073,1253.8,1253.7,1.599]
[1672840022807,13.4843,1253.8,1253.7,1.599]
[1672840023018,18.24902957,1253.8,1253.7,1.599]
[1672840023214,18.24902957,1253.8,1253.6,1.588]
[1672840023431,6.68692744,1253.7,1253.6,1.599]
[1672840025121,14.66392744,1253.7,1253.6,1.599]
[1672840028375,18.42072957,1253.7,1253.3,2.77999209]
[1672840028582,1.599,1253.4,1253.2,7.58978225]
[1672840028791,1.599,1253.4,1253.3,1.19299209]
[1672840028792,5.58664981,1253.4,1253.3,1.19299209]
[1672840028994,2.599,1253.4,1253.2,10.08978225]
[1672840029208,2.98763208,1253.3,1253.2,10.08978225]
[1672840029419,5.58663208,1253.4,1253.2,10.08978225]
[1672840030271,2.98763208,1253.3,1253.2,10.08978225]
[1672840030681,5.58663208,1253.4,1253.2,8.29929209]
[1672840030892,5.58663208,1253.4,1253.2,10.08978225]
[1672840031854,5.58663208,1253.4,1253.2,8.29929209]
[1672840035009,5.58663208,1253.4,1253.2,4.6063]
[1672840035736,13.56363208,1253.4,1253.2,4.6063]
[1672840037416,4.58663208,1253.4,1253.2,3.0073]
[1672840037628,2.98763208,1253.5,1253.3,3.186]
[1672840037837,2.98763208,1253.5,1253.4,4.6063]
[1672840039311,3.98763208,1253.5,1253.4,4.6063]
[1672840039521,2.98763208,1253.5,1253.4,4.6063]
[1672840042883,2.98763208,1253.5,1253.4,1.599]
[1672840048040,2.98763208,1253.6,1253.4,1.599]
[1672840048245,2.98763208,1253.6,1253.5,3.0073]
[1672840050453,2.98763208,1253.6,1253.5,4.6063]
[1672840051085,2.98763208,1253.7,1253.5,4.6063]
[1672840051294,2.98763208,1253.7,1253.6,1.589]
[1672840051506,14.06493599,1253.8,1253.6,1.589]
[1672840054984,14.06493599,1253.8,1253.6,4.5963]
[1672840055508,18.25086131,1253.8,1253.6,4.5963]
[1672840055705,18.25086131,1253.8,1253.6,1.589]
[1672840056233,14.06493599,1253.8,1253.6,1.589]
[1672840056869,18.25086131,1253.8,1253.6,1.589]
[1672840058235,14.06493599,1253.8,1253.6,1.589]
[1672840058555,18.25086131,1253.8,1253.6,1.589]
[1672840059076,3.58793599,1253.7,1253.6,1.589]
[1672840060334,18.25086131,1253.8,1253.6,1.589]
[1672840060545,3.58793599,1253.7,1253.6,1.589]
[1672840061283,18.25086131,1253.8,1253.6,1.589]
[1672840062127,13.16393599,1253.7,1253.5,4.5993]
[1672840062330,2.5,1253.6,1253.5,4.5993]
[1672840064331,13.16393599,1253.7,1253.5,4.5993]
[1672840065067,2.98589593,1253.6,1253.5,4.5993]
[1672840065280,2.5,1253.6,1253.5,4.5993]
[1672840065802,13.16393599,1253.7,1253.5,4.5993]
[1672840066115,2.5,1253.6,1253.5,4.5993]
[1672840067165,13.16393599,1253.7,1253.5,4.5993]
[1672840067797,2.5,1253.6,1253.5,4.5993]
[1672840071369,13.16393599,1253.7,1253.5,4.5993]
[1672840071685,2.5,1253.6,1253.5,4.5993]
[1672840072418,2.5,1253.6,1253.5,1.592]
[1672840075780,13.16393599,1253.7,1253.5,1.592]
[1672840076096,2.5,1253.6,1253.5,1.592]
[1672840076726,2.5,1253.6,1253.5,4.5993]
[1672840077253,13.16393599,1253.7,1253.5,4.5993]
[1672840077664,13.16393599,1253.7,1253.5,5.79229209]
[1672840077877,2.98841425,1253.6,1253.5,5.79229209]
[1672840078093,2.5,1253.6,1253.5,5.79229209]
[1672840078826,13.16393599,1253.7,1253.5,5.79229209]
[1672840081137,5.48911421,1253.6,1253.5,5.79229209]
[1672840081344,2.98911421,1253.6,1253.5,5.79229209]
[1672840081556,13.16393599,1253.7,1253.5,5.79229209]
[1672840082080,2.98912483,1253.6,1253.5,5.79229209]
[1672840082294,13.16393599,1253.7,1253.5,5.79229209]
[1672840082812,17.34986131,1253.7,1253.5,5.79229209]
[1672840083764,17.34986131,1253.7,1253.5,4.20029209]
[1672840084920,13.16393599,1253.7,1253.5,4.20029209]
[1672840086598,13.16393599,1253.7,1253.5,5.99078225]
[1672840087442,17.34986131,1253.7,1253.5,5.99078225]
[1672840088496,13.16393599,1253.7,1253.5,5.99078225]
[1672840088703,11.56493599,1253.7,1253.6,2.79199209]
[1672840088917,3.58793599,1253.7,1253.6,4.79199209]
[1672840091750,3.58793599,1253.7,1253.6,7.79929209]
[1672840094174,3.58793599,1253.7,1253.6,4.79199209]
[1672840094377,3.58793599,1253.7,1253.6,6.6063]
[1672840094592,3.58793599,1253.7,1253.6,7.79929209]
[1672840096487,3.58793599,1253.7,1253.6,6.6063]
[1672840099011,3.58793599,1253.7,1253.6,7.79929209]
[1672840099217,15.75086131,1253.8,1253.6,6.6063]
[1672840099535,3.58793599,1253.7,1253.6,7.79929209]
[1672840099745,6.08793599,1253.7,1253.6,7.79929209]
[1672840100157,3.58793599,1253.7,1253.6,6.60412214]
[1672840102055,3.58793599,1253.7,1253.6,7.79711423]
[1672840102576,3.58793599,1253.7,1253.6,6.60412214]
[1672840103839,3.58793599,1253.7,1253.6,6.59012214]
[1672840104267,0.00093599,1253.7,1253.6,10.98211423]
[1672840104468,8.94765671,1254.1,1253.6,20.79691675]
[1672840104678,3.58733594,1254.1,1254.0,1.599]
[1672840104891,7.77326126,1254.2,1254.0,4.099]
[1672840105102,7.77326126,1254.2,1254.1,1.589]
[1672840105311,3.58733594,1254.2,1254.1,1.589]
[1672840105631,3.58733594,1254.2,1254.1,4.5963]
[1672840105842,6.08733594,1254.2,1254.1,4.5963]
[1672840108147,6.08733594,1254.2,1254.1,1.589]
[1672840108566,2.5,1254.2,1254.1,1.589]
[1672840117920,4.099,1254.2,1254.0,4.5923]
[1672840123597,4.099,1254.2,1254.0,1.585]
[1672840123801,4.099,1254.2,1254.0,4.5923]
[1672840124644,1.599,1254.2,1254.0,4.5923]
[1672840124852,4.099,1254.2,1254.0,4.5923]
[1672840127593,4.099,1254.2,1254.0,1.585]
[1672840128113,7.68633594,1254.2,1254.0,1.585]
[1672840128432,4.099,1254.2,1254.0,1.585]
[1672840130008,1.599,1254.2,1254.0,1.585]
[1672840130216,1.599,1254.2,1254.1,3.0073]
[1672840130533,4.099,1254.2,1254.1,3.0073]
[1672840131369,1.599,1254.2,1254.1,3.0073]
[1672840133894,7.67333594,1254.3,1254.1,4.6063]
[1672840136738,11.85926126,1254.3,1254.1,1.599]
[1672840137263,7.67333594,1254.3,1254.1,1.599]
[1672840138835,11.85926126,1254.3,1254.1,1.599]
[1672840139260,7.67333594,1254.3,1254.1,1.599]
[1672840140097,11.85926126,1254.3,1254.1,1.599]
[1672840140308,7.67333594,1254.3,1254.1,1.599]
[1672840140520,6.08733594,1254.2,1254.1,1.599]
[1672840142625,10.27326126,1254.2,1254.1,1.599]
[1672840143360,7.77326126,1254.2,1254.1,1.599]
[1672840144833,3.58733594,1254.2,1254.1,1.599]
[1672840145249,7.77326126,1254.2,1254.1,1.599]
[1672840145673,3.58733594,1254.2,1254.1,1.599]
[1672840146199,7.77326126,1254.2,1254.1,1.599]
[1672840147358,3.58733594,1254.2,1254.1,1.599]
[1672840147880,7.77326126,1254.3,1254.1,2.78851042]
[1672840148086,3.58733594,1254.2,1254.1,2.78851042]
[1672840148506,2.5,1254.2,1254.1,2.78851042]
[1672840149138,10.27326126,1254.3,1254.1,2.78851042]
[1672840150091,2.5,1254.2,1254.1,2.78851042]
[1672840153453,6.08076224,1254.3,1254.1,2.78851042]
[1672840154501,10.26668756,1254.3,1254.1,1.599]
[1672840156819,6.08076224,1254.3,1254.1,1.599]
[1672840157978,10.26668756,1254.3,1254.1,1.599]
[1672840159773,10.26668756,1254.3,1254.1,4.6063]
[1672840160307,10.26668756,1254.3,1254.1,1.599]
[1672840160517,10.26668756,1254.3,1254.1,4.6063]
[1672840161672,3.58733594,1254.2,1254.1,4.6063]
[1672840163349,10.26668756,1254.3,1254.1,4.6063]
[1672840163562,10.26668756,1254.3,1254.2,1.585]
[1672840164093,6.67935162,1254.3,1254.2,1.585]
[1672840169034,2.4934263,1254.3,1254.2,1.585]
[1672840169254,16.6687263,1254.3,1254.0,1.18951042]
[1672840169458,13.16252994,1254.1,1253.9,4.5943]
[1672840169659,2.5,1254.0,1253.9,4.5943]
[1672840169867,6.08652994,1254.0,1253.9,4.5943]
[1672840171452,2.5,1254.0,1253.9,4.5943]
[1672840171774,6.08652994,1254.0,1253.9,1.587]
[1672840173778,2.5,1254.0,1253.9,1.587]
[1672840173985,6.08652994,1254.0,1253.9,1.587]
[1672840174301,6.08652994,1254.1,1253.9,4.6063]
[1672840174503,6.08652994,1254.1,1254.0,1.589]
[1672840175980,3.58652994,1254.1,1254.0,1.589]
[1672840176387,6.08652994,1254.1,1254.0,1.589]
[1672840177234,3.58652994,1254.1,1254.0,1.589]
[1672840177450,8.77081487,1254.2,1254.0,1.599]
[1672840177654,6.08652994,1254.1,1253.9,4.5993]
[1672840178004,6.08652994,1254.1,1254.0,1.599]
[1672840188792,2.5,1254.1,1254.0,1.599]
[1672840192800,6.08652994,1254.1,1254.0,1.599]
[1672840193947,6.08652994,1254.1,1254.0,1.592]
[1672840202963,10.27081487,1254.1,1254.0,1.592]
[1672840203274,6.08652994,1254.1,1254.0,1.592]
[1672840204534,10.27081487,1254.1,1254.0,1.592]
[1672840206742,6.68428493,1254.1,1254.0,1.592]
[1672840210738,11.4490145,1254.1,1254.0,1.592]
[1672840215887,6.68428493,1254.1,1254.0,1.592]
[1672840223767,6.68428493,1254.1,1253.9,5.78181042]
[1672840223976,3.5884403,1254.0,1253.9,5.78181042]
[1672840224505,3.5884403,1254.0,1253.9,2.77451042]
[1672840224716,3.5884403,1254.0,1253.9,5.78181042]
[1672840226715,3.5884403,1254.0,1253.9,2.77451042]
[1672840226923,3.5884403,1254.0,1253.9,5.78181042]
[1672840227340,3.5884403,1254.0,1253.9,2.77451042]
[1672840227551,3.5884403,1254.0,1253.9,5.78181042]
[1672840228709,3.5884403,1254.0,1253.9,4.6063]
[1672840228917,3.5884403,1254.0,1253.9,1.599]
[1672840228918,4.18428493,1254.0,1253.9,1.599]
[1672840229972,4.18428493,1254.0,1253.7,8.48107605]
[1672840229973,8.79058493,1254.0,1253.7,7.58007605]
[1672840230174,3.58880029,1253.9,1253.7,7.58007605]
[1672840230385,2.5,1253.8,1253.7,7.58007605]
[1672840231757,3.58880029,1253.9,1253.7,7.58007605]
[1672840232284,2.98929688,1253.8,1253.7,7.58007605]
[1672840232497,5.48929688,1253.8,1253.7,7.58007605]
[1672840233122,5.48929688,1253.8,1253.7,4.57277605]
[1672840233332,5.48929688,1253.8,1253.7,7.58007605]
[1672840233655,2.98929688,1253.8,1253.7,7.58007605]
[1672840234597,2.98929688,1253.8,1253.7,4.57277605]
[1672840234809,2.98929688,1253.8,1253.7,7.58007605]
[1672840235963,2.98929688,1253.8,1253.7,4.57277605]
[1672840236174,2.98929688,1253.8,1253.7,7.58007605]
[1672840239334,2.98929688,1253.8,1253.7,4.57277605]
[1672840239545,2.98929688,1253.8,1253.7,7.58007605]
[1672840240482,2.98929688,1253.8,1253.7,7.57520263]
[1672840242592,2.98929688,1253.8,1253.7,6.38569221]
[1672840245115,2.98929688,1253.8,1253.7,7.57822511]
[1672840247327,2.98929688,1253.8,1253.7,4.57092511]
[1672840247537,2.98929688,1253.8,1253.7,7.57822511]
[1672840248477,2.98929688,1253.8,1253.7,6.38569221]
[1672840249113,2.98929688,1253.8,1253.7,7.57827275]
[1672840249325,2.98929688,1253.8,1253.7,6.38569221]
[1672840250483,2.98929688,1253.8,1253.7,8.76504355]
[1672840251006,2.98929688,1253.8,1253.7,10.76504355]
[1672840251639,2.98929688,1253.8,1253.7,8.38569221]
[1672840252693,2.98929688,1253.8,1253.7,5.37839221]
[1672840253002,2.98929688,1253.8,1253.7,8.38569221]
[1672840256056,2.98929688,1253.8,1253.7,5.37839221]
[1672840256260,2.98929688,1253.8,1253.7,10.76504355]
[1672840256789,2.98929688,1253.8,1253.7,8.38569221]
[1672840257000,2.98929688,1253.8,1253.7,10.76504355]
[1672840257209,2.98929688,1253.8,1253.7,8.38569221]
[1672840258264,2.98929688,1253.8,1253.7,10.76504355]
[1672840260673,2.98929688,1253.9,1253.7,13.39090203]
[1672840260892,11.87208522,1254.1,1253.8,4.37782602]
[1672840261101,11.87208522,1254.1,1253.9,1.599]
[1672840261306,3.58880029,1254.0,1253.9,1.599]
[1672840262046,3.58880029,1254.0,1253.9,5.79912602]
[1672840262356,11.87208522,1254.1,1253.9,5.79912602]
[1672840262982,3.58880029,1254.0,1253.9,5.79912602]
[1672840264669,11.87208522,1254.1,1253.9,5.79912602]
[1672840264881,3.58880029,1254.0,1253.9,5.79912602]
[1672840265514,3.58880029,1254.0,1253.9,2.79182602]
[1672840267618,11.87208522,1254.1,1253.9,1.599]
[1672840267829,3.58880029,1254.0,1253.9,1.599]
[1672840268146,3.58880029,1254.0,1253.9,2.79182602]
[1672840268350,3.58880029,1254.0,1253.9,1.599]
[1672840273823,3.58880029,1254.0,1253.9,1.592]
[1672840274135,3.58880029,1254.0,1253.9,2.78482602]
[1672840274556,3.58880029,1254.0,1253.9,5.79212602]
[1672840274870,3.58880029,1254.0,1253.9,4.5993]
[1672840276755,3.58880029,1254.0,1253.9,1.592]
[1672840286327,7.19158493,1254.0,1253.8,1.592]
[1672840286531,6.08734831,1253.9,1253.8,1.592]
[1672840299259,3.58734831,1253.9,1253.8,1.592]
[1672840300099,15.74863324,1254.0,1253.8,1.592]
[1672840302415,11.56434831,1254.0,1253.8,2.78482602]
[1672840302615,15.74863324,1254.0,1253.8,1.592]
[1672840303250,15.74863324,1254.0,1253.8,2.78482602]
[1672840303459,15.74863324,1254.0,1253.8,1.592]
[1672840303778,17.34763324,1254.0,1253.8,1.585]
[1672840303988,17.34763324,1254.0,1253.8,2.77782602]
[1672840305670,13.16334831,1254.0,1253.8,2.77782602]
[1672840306400,13.16334831,1254.0,1253.8,5.78512602]
[1672840306719,13.16334831,1254.0,1253.8,2.77782602]
[1672840307456,13.16334831,1254.0,1253.8,5.78512602]
[1672840308819,5.18634831,1254.0,1253.8,5.78512602]
[1672840309027,2.98859933,1253.9,1253.8,7.57373296]
[1672840309236,5.48859933,1253.9,1253.8,7.57373296]
[1672840309451,5.48859933,1253.9,1253.8,9.17273296]
[1672840309662,2.98859933,1253.9,1253.8,9.17273296]
[1672840312814,2.98859933,1253.9,1253.8,7.97990694]
[1672840315545,2.98859933,1253.9,1253.8,4.97260694]
[1672840315862,2.98859933,1253.9,1253.8,10.35341035]
[1672840316391,2.98859933,1253.9,1253.8,7.97405901]
[1672840322271,2.98859933,1254.0,1253.8,7.97405901]
[1672840322589,3.58734831,1254.1,1253.9,2.78376375]
[1672840322805,2.98749401,1254.0,1253.9,1.19176375]
[1672840323003,2.98749401,1254.0,1253.9,2.79076375]
[1672840324798,6.08734831,1254.1,1253.9,2.79076375]
[1672840325012,6.08734831,1254.1,1254.0,1.589]
[1672840333201,7.68634831,1254.1,1253.9,4.5993]
[1672840334251,7.68634831,1254.1,1253.9,5.79106375]
[1672840334781,5.18634831,1254.1,1253.9,5.79106375]
[1672840335832,7.68634831,1254.1,1253.9,5.79106375]
[1672840337090,7.68634831,1254.1,1253.9,4.5993]
[1672840337302,7.68634831,1254.1,1253.9,5.79106375]
[1672840337512,7.68634831,1254.1,1253.9,4.5993]
[1672840338037,7.68634831,1254.1,1253.9,5.79106375]
[1672840338668,11.87063324,1254.1,1253.9,5.79106375]
[1672840339096,7.68634831,1254.1,1253.9,5.79106375]
[1672840340031,7.68634831,1254.1,1253.9,2.78376375]
[1672840340242,11.87063324,1254.1,1253.9,5.79106375]
[1672840340562,5.18634831,1254.1,1253.9,5.79106375]
[1672840340765,7.68634831,1254.1,1253.9,5.79106375]
[1672840341927,7.68634831,1254.1,1253.9,2.78376375]
[1672840342237,7.68634831,1254.1,1253.9,5.79106375]
[1672840343499,15.66334831,1254.1,1253.9,5.79106375]
[1672840343815,19.84763324,1254.1,1253.9,5.79106375]
[1672840345081,15.66334831,1254.1,1253.9,7.57967069]
[1672840345291,15.66334831,1254.1,1253.9,5.79106375]
[1672840345707,19.84763324,1254.1,1253.9,5.79106375]
[1672840346235,3.58734831,1254.0,1253.9,5.79106375]
[1672840346552,2.5,1254.0,1253.9,5.79106375]
[1672840346757,6.08734831,1254.0,1253.9,5.79106375]
[1672840346970,2.5,1254.0,1253.9,7.57967069]
[1672840347708,2.5,1254.0,1253.9,4.57237069]
[1672840347909,2.5,1254.0,1253.9,7.57967069]
[1672840348122,19.84763324,1254.1,1253.9,7.57967069]
[1672840348557,3.58734831,1254.0,1253.9,7.57967069]
[1672840348860,6.08734831,1254.0,1253.9,4.57237069]
[1672840349282,6.08734831,1254.0,1253.9,7.57967069]
[1672840349904,6.08734831,1254.0,1253.9,5.79106375]
[1672840350113,6.08734831,1254.0,1253.9,7.57967069]
[1672840350328,6.08734831,1254.0,1253.9,5.79106375]
[1672840353179,3.58734831,1254.0,1253.9,5.79106375]
[1672840353805,3.58734831,1254.0,1253.9,5.78806375]
[1672840354016,3.58734831,1254.0,1253.9,2.78076375]
[1672840354328,3.58734831,1254.0,1253.9,5.78806375]
[1672840354852,3.58734831,1254.0,1253.9,7.57667069]
[1672840355062,3.58734831,1254.0,1253.9,5.78806375]
[1672840355482,3.58734831,1254.0,1253.9,7.57667069]
[1672840356117,13.16334831,1254.1,1253.9,6.38490694]
[1672840356330,13.16334831,1254.1,1254.0,1.19328982]
[1672840360635,13.16334831,1254.1,1254.0,2.98189676]
[1672840360838,9.576,1254.1,1254.0,2.98189676]
[1672840362007,9.576,1254.1,1254.0,1.19328982]
[1672840362312,13.16334831,1254.1,1254.0,1.19328982]
[1672840363889,11.56434831,1254.1,1254.0,2.78528982]
[1672840364097,11.56434831,1254.1,1254.0,5.79258982]
[1672840364841,14.06434831,1254.1,1254.0,5.79258982]
[1672840365253,11.56434831,1254.1,1254.0,5.79258982]
[1672840365991,14.06434831,1254.1,1254.0,2.78528982]
[1672840366508,11.56434831,1254.1,1254.0,2.78528982]
[1672840367358,14.06434831,1254.1,1254.0,1.592]
[1672840367990,11.56434831,1254.1,1254.0,1.592]
[1672840368831,14.06434831,1254.1,1254.0,1.592]
[1672840369155,11.56434831,1254.1,1254.0,1.592]
[1672840370295,11.56434831,1254.1,1254.0,2.78528982]
[1672840370826,11.56434831,1254.1,1254.0,1.592]
[1672840371033,14.06434831,1254.1,1254.0,2.78528982]
[1672840371350,11.56434831,1254.1,1254.0,1.592]
[1672840371977,11.56434831,1254.1,1254.0,2.78528982]
[1672840372512,14.06434831,1254.1,1254.0,2.78528982]
[1672840372712,11.56434831,1254.1,1254.0,2.78528982]
[1672840374189,11.56434831,1254.1,1254.0,1.592]
[1672840374711,11.56434831,1254.1,1254.0,2.78528982]
[1672840376708,14.06434831,1254.1,1254.0,2.78528982]
[1672840377238,11.56434831,1254.1,1254.0,2.78528982]
[1672840377976,14.06434831,1254.1,1254.0,2.78528982]
[1672840378285,11.56434831,1254.1,1254.0,2.78528982]
[1672840381017,14.06434831,1254.1,1254.0,2.78528982]
[1672840381227,11.56434831,1254.1,1254.0,1.592]
[1672840381860,14.06434831,1254.1,1254.0,1.592]
[1672840383856,11.56434831,1254.1,1253.9,7.58119676]
[1672840384384,14.06434831,1254.1,1253.9,7.58119676]
[1672840386061,11.56434831,1254.1,1253.9,7.58119676]
[1672840386904,14.06434831,1254.1,1253.9,7.58119676]
[1672840387101,14.06434831,1254.1,1253.9,7.58819676]
[1672840387428,19.84763324,1254.1,1253.9,5.79958982]
[1672840390157,19.84763324,1254.1,1253.9,7.58819676]
[1672840390158,15.66334831,1254.1,1253.9,7.58819676]
[1672840390367,15.66334831,1254.1,1253.9,4.58089676]
[1672840390893,19.84763324,1254.1,1253.9,7.58819676]
[1672840391104,15.66334831,1254.1,1253.9,7.58819676]
[1672840391734,19.84763324,1254.1,1253.9,7.58819676]
[1672840394261,15.66334831,1254.1,1253.9,7.58819676]
[1672840395313,19.84763324,1254.1,1253.9,7.58819676]
[1672840395625,2.5,1254.0,1253.9,7.58819676]
[1672840399940,2.5,1254.0,1253.9,4.58089676]
[1672840400153,15.66334831,1254.1,1253.9,7.58819676]
[1672840400566,15.66334831,1254.1,1253.9,4.58089676]
[1672840400987,2.5,1254.0,1253.9,7.58819676]
[1672840401720,19.84763324,1254.1,1253.9,7.58819676]
[1672840401934,15.66334831,1254.1,1254.0,1.19328982]
[1672840402564,15.66334831,1254.1,1254.0,4.20058982]
[1672840403828,13.16334831,1254.1,1254.0,4.20058982]
[1672840404451,9.576,1254.1,1254.0,5.98919676]
[1672840406460,7.977,1254.1,1254.0,7.58819676]
[1672840407409,7.977,1254.1,1254.0,4.58089676]
[1672840407618,7.977,1254.1,1254.0,7.58819676]
[1672840408562,7.977,1254.1,1254.0,7.58613836]
[1672840412455,7.977,1254.1,1254.0,5.79753142]
[1672840416865,13.16234831,1254.2,1254.0,7.58613836]
[1672840421071,9.575,1254.2,1254.0,7.58613836]
[1672840421276,9.575,1254.2,1254.0,6.39490694]
[1672840421486,13.16234831,1254.2,1254.0,6.39490694]
[1672840421696,5.18534831,1254.2,1254.0,6.39490694]
[1672840421913,4.18428493,1254.3,1254.1,4.96260694]
[1672840421914,3.58734831,1254.3,1254.1,4.96260694]
[1672840422125,7.77163324,1254.4,1254.2,4.6063]
[1672840422437,3.58734831,1254.3,1254.2,4.6063]
[1672840422644,18.24863324,1254.4,1254.2,4.6063]
[1672840422854,11.56434831,1254.4,1254.3,2.5]
[1672840423072,14.06434831,1254.4,1254.3,2.5]
[1672840423270,14.06434831,1254.4,1254.2,4.6063]
[1672840423475,3.58734831,1254.3,1254.2,4.6063]
[1672840423691,18.24863324,1254.4,1254.2,4.6063]
[1672840424325,14.06434831,1254.4,1254.2,4.6063]
[1672840426849,14.06434831,1254.4,1254.2,1.599]
[1672840427063,14.06434831,1254.4,1254.2,4.6063]
[1672840427795,18.24863324,1254.4,1254.2,4.6063]
[1672840428530,2.5,1254.3,1254.2,4.6063]
[1672840432534,2.5,1254.3,1254.2,1.599]
[1672840435052,4.099,1254.3,1254.1,4.6063]
[1672840435367,7.68634831,1254.3,1254.1,4.6063]
[1672840436330,7.68634831,1254.3,1254.1,3.0073]
[1672840436331,15.66334831,1254.3,1254.1,3.0073]
[1672840436738,3.58734831,1254.2,1254.1,3.0073]
[1672840437366,19.84763324,1254.3,1254.1,3.0073]
[1672840438206,3.58734831,1254.2,1254.1,3.0073]
[1672840438629,19.84763324,1254.3,1254.1,3.0073]
[1672840439042,3.58734831,1254.2,1254.1,3.0073]
[1672840441476,1.0,1254.1,1254.0,1.592]
[1672840441998,1.0,1254.1,1253.9,8.89490694]
[1672840444525,1.0,1254.1,1253.9,6.39490694]
[1672840444838,5.18634831,1254.2,1253.9,8.89490694]
[1672840445149,1.0,1254.1,1253.9,8.89490694]
[1672840447041,5.18634831,1254.2,1253.9,8.89490694]
[1672840448615,1.0,1254.1,1253.9,8.89490694]
[1672840449668,5.18634831,1254.2,1253.9,8.89490694]
[1672840450513,1.0,1254.1,1253.9,8.89490694]
[1672840451673,1.0,1254.1,1254.0,3.0073]
[1672840452098,5.18634831,1254.2,1254.0,3.0073]
[1672840454412,1.0,1254.1,1254.0,3.0073]
[1672840455464,5.18634831,1254.2,1254.0,3.0073]
[1672840455672,1.0,1254.1,1254.0,3.0073]
[1672840457355,5.18634831,1254.2,1254.0,3.0073]
[1672840457566,1.0,1254.1,1254.0,3.0073]
[1672840460082,13.16334831,1254.2,1254.0,3.0073]
[1672840460292,1.0,1254.1,1254.0,3.0073]
[1672840461972,13.16334831,1254.2,1254.0,3.0073]
[1672840462932,1.0,1254.1,1254.0,3.0073]
[1672840463770,1.0,1254.1,1254.0,4.5943]
[1672840464714,1.0,1254.1,1254.0,1.587]
[1672840464922,13.16334831,1254.2,1254.0,4.5943]
[1672840465975,13.16334831,1254.2,1254.0,1.587]
[1672840466180,1.0,1254.1,1254.0,4.5943]
[1672840467869,13.16334831,1254.2,1254.0,4.5943]
[1672840468599,1.0,1254.1,1254.0,4.5943]
[1672840469653,13.16334831,1254.2,1254.0,4.5943]
[1672840469961,1.0,1254.1,1254.0,4.5943]
[1672840472174,13.16334831,1254.2,1254.0,4.5943]
[1672840472383,13.16334831,1254.2,1254.0,6.38290694]
[1672840477113,13.16334831,1254.2,1254.0,3.37560694]
[1672840477531,13.16334831,1254.2,1254.0,6.38290694]
[1672840481309,5.18634831,1254.2,1254.0,6.38290694]
[1672840482256,5.18634831,1254.2,1254.0,3.37560694]
[1672840482472,5.18634831,1254.2,1254.0,6.38290694]
[1672840486885,9.37063324,1254.2,1254.0,6.38290694]
[1672840487194,9.37063324,1254.2,1254.0,4.5943]
[1672840487195,3.58734831,1254.1,1254.0,4.5943]
[1672840487407,4.58734831,1254.1,1254.0,4.58993916]
[1672840488249,4.58734831,1254.1,1254.0,1.58263916]
[1672840494225,3.58734831,1254.1,1254.0,1.58263916]
[1672840494973,4.58734831,1254.1,1254.0,1.58263916]
[1672840500014,3.58734831,1254.1,1254.0,1.58263916]
[1672840500439,4.58734831,1254.1,1254.0,1.58263916]
[1672840502122,3.58734831,1254.1,1254.0,1.58263916]
[1672840502334,4.58734831,1254.1,1254.0,1.58263916]
[1672840503911,4.58734831,1254.1,1254.0,1.599]
[1672840505384,1.584,1254.0,1253.7,22.46325828]
[1672840505588,2.98913994,1253.8,1253.7,8.77425828]
[1672840505801,2.98913994,1253.8,1253.7,8.89490694]
[1672840506010,5.48913994,1253.8,1253.7,8.89490694]
[1672840507790,2.98913994,1253.8,1253.7,8.89490694]
[1672840508637,7.08813994,1253.9,1253.7,8.89490694]
[1672840509683,4.58813994,1253.9,1253.8,2.0]
[1672840510211,7.08813994,1253.9,1253.8,2.0]
[1672840511589,4.58813994,1253.9,1253.8,2.0]
[1672840512747,7.08813994,1253.9,1253.8,2.0]
[1672840512944,4.58813994,1253.9,1253.8,2.0]
[1672840513364,7.08813994,1253.9,1253.8,2.0]
[1672840513580,4.58813994,1253.9,1253.8,2.0]
[1672840514325,7.08813994,1253.9,1253.7,8.89490694]
[1672840518952,4.58813994,1253.9,1253.8,2.0]
[1672840521045,7.08813994,1253.9,1253.8,2.0]
[1672840521261,4.58813994,1253.9,1253.7,8.89490694]
[1672840521469,7.08813994,1253.9,1253.7,8.89490694]
[1672840521674,7.08813994,1253.9,1253.8,3.0073]
[1672840521886,4.58813994,1253.9,1253.8,5.0073]
[1672840523681,4.58813994,1253.9,1253.8,3.0073]
[1672840523889,7.08813994,1253.9,1253.8,3.0073]
[1672840524943,7.08813994,1253.9,1253.8,1.77247059]
[1672840525991,4.099,1253.9,1253.8,1.77247059]
[1672840527253,7.08586428,1253.9,1253.8,1.77247059]
[1672840527565,4.099,1253.9,1253.8,1.77247059]
[1672840528408,4.099,1253.9,1253.8,2.96504063]
[1672840528724,4.099,1253.9,1253.8,1.77247059]
[1672840529462,4.099,1253.9,1253.8,2.96504063]
[1672840529775,4.099,1253.9,1253.8,1.77247059]
[1672840530091,1.599,1253.9,1253.8,2.96504063]
[1672840530403,1.599,1253.9,1253.8,1.77247059]
[1672840530607,4.099,1253.9,1253.8,1.77247059]
[1672840530812,1.599,1253.9,1253.8,2.96504063]
[1672840531234,1.599,1253.9,1253.8,1.77247059]
[1672840531449,1.599,1253.9,1253.8,2.96504063]